Workbook

Sheet Introduction
B1: This Biodiesel Production Cost Calculator has 4 worksheets. There are fields that can be completed by the user. It is 8 columns wide and 250 rows long.
B2: Guidelines For Estimating
B3: Biodiesel Production Costs - Farm Fuel
B4: ="Based on "&Input!D14&",000 Litres Used Vegetable Oil" -> Based on 15,000 Litres Used Vegetable Oil
B12: This guide provides you with planning information and a format for calculating costs of production for on-farm biodiesel production based on the cost of supplying used vegetable oils as the oil feedstock. Adjustments will be necessary when applying these figures to your own enterprise.
B14: The budget estimates are based on a number of assumptions which are clearly defined in the supporting pages. Input costs are based on industry information. Proper plant management in the production process and compliance to all applicable environmental and safety requirements is assumed. Most original equipment manufacturers (OEM) require biodiesel to meet ASTM D6751 fuel quality standard.
B16: Disclaimer: This budget is only a guide and is not intended as an in depth study of the cost of production of the biodiesel industry. Interpretation and use of this information is the responsibility of the user. If you require assistance with developing your individual budget for your operation, call the Agricultural Information Contact Centre at 1-877-424-1300.
B19: Adapted for Ontario by Kevin McKague and Richard Brunke
B20: Engineering Specialists, OMAFRA
B21: email: kevin.mckague@ontario.ca
B22: version October 14, 2014
B26: End of worksheet

Sheet Input
B1: This Biodiesel Production Cost Calculator has 4 worksheets. There are fields that can be completed by the user. It is 8 columns wide and 250 rows long.
B2: Biodiesel Production Costs - Input
B4: Assumptions
B6: 1. This budget outlines the cost of production for a biodiesel operation.
B7: 2. Buildings and equipment are valued at new cost.
B8: 3. All feedstock is valued at fair market price.
B9: 4. Feedstock cost (used vegetable oil) does not include transportation
B10: costs to facility.
B11: 5. All biodiesel produced is for farm use only.
B13: Biodiesel Plant Production | D13: Input Variables | E13: Units | F13: Comments
B14: Plant size - thousands of litres | D14: 15
B15: Days per year | D15: 65
B16: Hours operation per day | D16: 8
B17: Employees per shift - biodiesel production | D17: 0.25
B18: Labour rate | D18: 20 | E18: / hour
B20: Vegetable oil required per litre biodiesel | D20: 1.05 | E20: litres
B21: Methanol | D21: 6950 | E21: / tonne
B22: Methanol recovery | D22: 25 | E22: %
B23: Catalyst - potassium hydroxide | D23: 12350 | E23: / tonne
B24: Percent increase in Catalyst Required for FFAs | D24: 100 | E24: %
B26: Glycerol | D26: 180 | E26: / tonne
B27: Diesel (coloured) farm fuel - ULSD | D27: 1.2 | E27: / litre
B28: On-farm biodiesel blend usage | D28: 100 | E28: %
B29: On-farm fuel efficiency increase with biodiesel use | D29: 1.5 | E29: %
B31: Used Vegetable Oil Supply
B32: Used vegetable oil cost | D32: 500 | E32: / tonne
B33: Average load size per oil pick-up | D33: 2200 | E33: Litres
B34: Average distance per oil pick-up | D34: 200 | E34: kilometres
B35: Trucking cost - 1 tonne with trailer | D35: 0.5 | E35: / km
B36: Labour rate | D36: 20 | E36: / hour
B37: Used oil bulk density | D37: 0.915 | E37: kg / L
B39: Other Operating Costs
B40: Hydro | D40: 0.15 | E40: / kWhr
B41: Maintenance | D41: 2.5 | E41: %
B42: Waste/washwater disposal | D42: 0.15 | E42: / L
B43: Ontario Fuel Tax submission (0.143/L if product used in licensed vehicles) | D43: 0 | E43: / L
B44: Misc. administration (e.g. Registration with Ontario Ministry of Finance) | D44: 0 | E44: / year
B45: Insurance | D45: 0.5 | E45: %
B46: Property taxes | D46: 0.5 | E46: %
B47: Investment rate | D47: 2.5 | E47: %
B48: Operating interest rate | D48: 4 | E48: %
B50: Capital Costs
B51: Buildings | C51: Original Value | E51: Salvage Value | F51: Useful Life
B52: Biodiesel plant | C52: 3000 | E52: 0.1 | F52: 20 | G52: years
B53: Waste oil processing | C53: 2500 | E53: 0.1 | F53: 20 | G53: years
B54: Total | C54: =SUM(C52:C53) -> 5500 | E54: =AVERAGE(E52:E53) -> 0.1 | F54: =AVERAGE(F52:F53) -> 20 | G54: years
B56: Machinery & Equipment
B57: Biodiesel plant | C57: 3000 | E57: 0.1 | F57: 10 | G57: years
B58: Waste oil filtering | C58: 2500 | E58: 0.1 | F58: 10 | G58: years
B59: Total | C59: =SUM(C57:C58) -> 5500 | E59: =AVERAGE(E57:E58) -> 0.1 | F59: =AVERAGE(F57:F58) -> 10 | G59: years
B61: Total Bldg., Mach. & Equip | C61: =C54+C59 -> 11000
B63: Total Land Value | C63: 10000
B65: Total Capital Investment | C65: =C61+C63 -> 21000
B69: end of worksheet

Sheet Summary
B1: This Biodiesel Production Cost Calculator has 4 worksheets. There are fields that can be completed by the user. It is 8 columns wide and 250 rows long.
B2: =" Biodiesel Production Costs - Farm Fuel" -> Biodiesel Production Costs - Farm Fuel | D2: =TODAY() -> 2023-04-26
B3: ="Based on "&Input!D14&",000 Litres of Used Vegetable Oil" -> Based on 15,000 Litres of Used Vegetable Oil
B6: A. Operating Costs | C6: Cost/Litre | D6: Total Cost | E6: Your Actual Cost
B7: 1. Input Costs
B8: 1.01 Feedstock - used vegetable oil | C8: =SUM(D8/(Input!D14*1000)) -> 0.5270416667 | D8: =Details!G40 -> 7905.625
B9: 1.02 Methanol | C9: =SUM(D9/(Input!D14*1000)) -> 1.101740063 | D9: =Details!G50 -> 16526.10094
B10: 1.03 Catalyst | C10: =SUM(D10/(Input!D14*1000)) -> 0.3846718103 | D10: =Details!G62 -> 5770.077154
B11: Subtotal Input Cost | C11: =C8+C9+C10 -> 2.013453539 | D11: =SUM(D8:D10) -> 30201.80309
B13: 2. Other Operating Costs
B14: 2.01 Hydro | C14: =SUM(D14/(Input!D14*1000)) -> 0.0099 | D14: =Details!G69 -> 148.5
B15: 2.02 Maintenance | C15: =SUM(D15/(Input!D14*1000)) -> 0.01833333333 | D15: =Details!G76 -> 275
B16: 2.03 Waste/washwater disposal | C16: =SUM(D16/(Input!D14*1000)) -> 0.15 | D16: =Details!G79 -> 2250
B17: 2.04 Ontario Fuel Tax submission | C17: =SUM(D17/(Input!D14*1000)) -> 0 | D17: =Details!G80 -> 0
B18: 2.05 Misc. administration | C18: =SUM(D18/(Input!D14*1000)) -> 0 | D18: =Details!G81 -> 0
B19: 2.06 Insurance | C19: =SUM(D19/(Input!D14*1000)) -> 0.003666666667 | D19: =Details!G88 -> 55
B20: 2.07 Property taxes | C20: =SUM(D20/(Input!D14*1000)) -> 0.005166666667 | D20: =Details!G95 -> 77.5
B21: Subtotal Operating Costs | C21: =SUM(C14:C20) -> 0.1870666667 | D21: =SUM(D14:D20) -> 2806
B22: 2.08 Operating interest | C22: =SUM(D22/(Input!D14*1000)) -> 0.003733333333 | D22: =ROUND(Details!G103,0) -> 56
B23: Total Operating Costs | C23: =C21+C22+C11 -> 2.204253539 | D23: =SUM(D21:D22)+D11 -> 33063.80309
B25: 3. Depreciation
B26: 3.01 Buildings | C26: =SUM(D26/(Input!D14*1000)) -> 0.0165 | D26: =Details!G132 -> 247.5
B27: 3.02 Machinery and equipment | C27: =SUM(D27/(Input!D14*1000)) -> 0.033 | D27: =Details!G138 -> 495
B29: 4. Investment
B30: 4.01 Buildings | C30: =SUM(D30/(Input!D14*1000)) -> 0.005041666667 | D30: =Details!G147 -> 75.625
B31: 4.02 Machinery and equipment | C31: =SUM(D31/(Input!D14*1000)) -> 0.005041666667 | D31: =Details!G154 -> 75.625
B32: 4.03 Land | C32: =SUM(D32/(Input!D14*1000)) -> 0.01666666667 | D32: =Details!G159 -> 250
B33: Total Fixed Costs | C33: =SUM(C26:C32) -> 0.07625 | D33: =SUM(D26:D32) -> 1143.75
B34: Total Operating and Fixed Costs | C34: =C23+C33 -> 2.280503539 | D34: =D23+D33 -> 34207.55309
B36: C. Labour | C36: =SUM(D36/(Input!D14*1000)) -> 0.2127407407 | D36: =Details!G176 -> 3191.111111
B37: Total Cost of Production | C37: =C34+C36 -> 2.49324428 | D37: =D36+D34 -> 37398.6642
B39: D. Value
B40: 5. Biodiesel
B41: 5.01 Estimated on-farm biodiesel value | C41: =SUM(D41/(Input!D14*1000)) -> 1.2 | D41: =Details!G183 -> 18000
B42: 5.02 Estimated increased fuel efficiency value | C42: =SUM(D42/(Input!D14*1000)) -> 0.01827411168 | D42: =Details!G198 -> 274.1116751
B43: 5.03 Glycerol sales | C43: =SUM(D43/(Input!D14*1000)) -> 0.016845912 | D43: =Details!G203 -> 252.68868
B44: Total Value | C44: =C41+C42+C43 -> 1.235120024 | D44: =D41+D42+D43 -> 18526.80036
B46: Total Value - Cost of Production | C46: =C44-C37 -> -1.258124256 | D46: =D44-D37 -> -18871.86385
B48: Breakeven price | C48: $/Litre
B49: A. Operating Costs | C49: =SUM((D23-(D44-D41))/(Input!D14*1000)) -> 2.169133516
B50: B. Operating and labour costs | C50: =SUM(((D23+D36)-(D44-D41))/(Input!D14*1000)) -> 2.381874256
B51: C. Operating and fixed costs | C51: =SUM((D34-(D44-D41))/(Input!D14*1000)) -> 2.245383516
B52: D. Operating, fixed and labour costs | C52: =SUM(((D34+D36)-(D44-D41))/(Input!D14*1000)) -> 2.458124256
B55: ="Breakeven Price $/Litre = (Cost - (Total Value - Est. on-farm biodiesel value)) ÷ "&Input!D14&",000 litres" -> Breakeven Price $/Litre = (Cost - (Total Value - Est. on-farm biodiesel value)) ÷ 15,000 litres
B61: Disclaimer: This budget is only a guide and is not intended as an in-depth study of the cost of production of
B62: this industry. Interpretation and use of this information is the responsibility of the user. No liability for
B63: decisions based on the interpretation and use of the information in this publication is assumed.

Sheet Details
B1: This Biodiesel Production Cost Calculator has 4 worksheets. There are fields that can be completed by the user. It is 8 columns wide and 250 rows.
B2: Biodiesel Production Worksheet
B5: Assumptions
B6: 1. This budget outlines the cost of production for a biodiesel operation.
B7: 2. Buildings and equipment are valued at new cost.
B8: 3. All soybean feedstock is valued at cost of production.
B9: 4. Feedstock cost (vegetable oil) includes the market value of soybean meal produced.
B10: 5. All biodiesel produced is for farm use only.
B14: A. Operating Costs
C15: 1. Input Costs | I15: Your Values
D16: 1.01 Feedstock - used vegetable oil
G17: =SUM(1000*Input!D14) -> 15000 | H17: Biodiesel Plant Capacity - litres
F18: x | G18: =Input!D20 -> 1.05 | H18: oil required per litre biodiesel
F19: = | G19: =SUM(G17*G18) -> 15750 | H19: Litres vegetable oil required
F20: x | G20: =Input!D37 -> 0.915 | H20: used vegetable oil bulk density kg/L
F21: ÷ | G21: 1000 | H21: kg per tonne
F22: = | G22: =SUM(G19*G20)/G21 -> 14.41125 | H22: Tonnes of used vegetable oil
G24: =G22 -> 14.41125 | H24: Tonnes of vegetable oil
F25: x | G25: =Input!D32 -> 500 | H25: Used vegetable oil per tonne
F26: = | G26: =SUM(G24*G25) -> 7205.625 | H26: Used vegetable oil cost
G28: =Input!D33 -> 2200 | H28: Litres average load size per pickup
G30: =G19 -> 15750 | H30: Litres vegetable oil required
F31: ÷ | G31: =G28 -> 2200 | H31: Litres load size per pickup
F32: = | G32: =ROUND(G30/G31,0) -> 7 | H32: Total number of loads
F33: x | G33: =Input!D34 -> 200 | H33: Average km per pickup
F34: = | G34: =SUM(G32*G33) -> 1400 | H34: Number of km
F35: x | G35: =Input!D35 -> 0.5 | H35: Trucking cost per km
F36: = | G36: =SUM(G34*G35) -> 700 | H36: Trucking cost
G38: =G26 -> 7205.625 | H38: =H26 -> Used vegetable oil cost
F39: - | G39: =G36 -> 700 | H39: =H36 -> Trucking cost
E40: Total | F40: = | G40: =SUM(G38+G39) -> 7905.625 | H40: Net Feedstock Cost
D42: 1.02 Methanol
G43: =SUM(1000*Input!D14) -> 15000 | H43: Biodiesel Plant Capacity - litres
F44: x | G44: =Input!D20 -> 1.05 | H44: oil required per litre biodiesel
F45: x | G45: =Input!D37 -> 0.915 | H45: used oil bulk density kg/L
F46: x | G46: 0.22 | H46: Methanol required
F47: x | G47: =(Input!D22/100) -> 0.25 | H47: Methanol recovery
F48: ÷ | G48: 1000 | H48: kg per tonne
F49: x | G49: =Input!D21 -> 6950 | H49: Methanol per tonne
E50: Total | F50: = | G50: =(G43*G44*G45*G46*(1-G47)*G49)/G48 -> 16526.10094 | H50: Methanol
D52: 1.03 Catalyst
G53: =SUM(1000*Input!D14) -> 15000 | H53: Biodiesel Plant Capacity - litres
F54: x | G54: =Input!D20 -> 1.05 | H54: oil required per litre biodiesel
F55: x | G55: =Input!D37 -> 0.915 | H55: Used oil bulk density kg/L
F56: ÷ | G56: 1000 | H56: kg per tonne
F57: x | G57: 16.21 | H57: kg potassium hydroxide /tonne
F58: + | G58: =G57*(Input!D24/100) -> 16.21 | H58: Additional catalyst to adjust for FFAs (kg/T)
F59: = | G59: =G57+G58 -> 32.42 | H59: Total kg potassium hydroxide /tonne
F60: ÷ | G60: 1000 | H60: kg per tonne
F61: x | G61: =Input!D23 -> 12350 | H61: Catalyst per tonne
E62: Total | F62: = | G62: =SUM(G53*G54*G55/G56*G59/G60*G61) -> 5770.077154 | H62: Catalyst
C64: 2. Other Operating Costs
D65: 2.01 Hydro
G66: =Input!D14*1000 -> 15000 | H66: Biodiesel Plant Capacity - litres
F67: x | G67: 0.066 | H67: kWhr per litre
F68: x | G68: =Input!D40 -> 0.15 | H68: Hydro rate - kWhr
E69: Total | F69: = | G69: =SUM((G66*G67*G68)) -> 148.5 | H69: Hydro - biodiesel
D71: 2.02 Maintenance
G72: =Input!C54 -> 5500 | H72: capital cost - buildings
F73: + | G73: =Input!C59 -> 5500 | H73: capital cost - equipment
F74: = | G74: =SUM(G72:G73) -> 11000 | H74: Total bldg. & equipment
F75: x | G75: =Input!D41/100 -> 0.025 | H75: Maintenance rate
F76: = | G76: =SUM(G74*G75) -> 275 | H76: Total Maintenance
D78: 2.03 - 2.05 Misc. Administration
G79: =Input!D14*1000*Input!D42 -> 2250 | H79: Waste/washwater disposal
G80: =Input!D14*1000 * Input!D43 -> 0 | H80: Ontario Fuel Tax Submission
G81: =Input!D44 -> 0 | H81: Misc. Administration
D83: 2.06 Insurance
G84: =Input!C54 -> 5500 | H84: capital cost - buildings
F85: + | G85: =Input!C59 -> 5500 | H85: capital cost - equipment
F86: = | G86: =SUM(G84:G85) -> 11000 | H86: Total bldg. & equipment
F87: x | G87: =Input!D45/100 -> 0.005 | H87: Insurance rate
F88: = | G88: =SUM(G86*G87) -> 55 | H88: Total Insurance
D90: 2.07 Property Taxes
G91: =Input!C54 -> 5500 | H91: capital cost - buildings
F92: + | G92: =Input!C63 -> 10000 | H92: capital cost - land
F93: = | G93: =SUM(G91:G92) -> 15500 | H93: Total bldg. & land
F94: x | G94: =Input!D46/100 -> 0.005 | H94: Property tax rate
F95: = | G95: =SUM(G93*G94) -> 77.5 | H95: Total Property tax
D97: 2.08 Operating Interest
D98: (Operating interest is charged on one half of the subtotal operating costs)
G100: =Summary!D21 -> 2806 | H100: subtotal operating costs
F101: ÷ | G101: 2 | H101: average
F102: x | G102: =Input!D48 -> 4 | H102: % operating interest rate
F103: = | G103: =ROUND((G100/G101)*(G102),2)/100 -> 56.12 | H103: Operating Interest
G105: Capital Costs
C107: Buildings
C108: Biodiesel Plant | H108: =Input!C52 -> 3000
C109: Waste oil facility | H109: =Input!C53 -> 2500
C110: Total Building Cost | H110: =SUM(H108:H109) -> 5500
C112: Machinery & Equipment
C113: Biodiesel Plant | H113: =Input!C57 -> 3000
C114: Waste oil filtering | H114: =Input!C58 -> 2500
C115: Total Machinery & Equipment Cost | H115: =SUM(H113:H114) -> 5500
C117: Total Bldg., Mach. & Equip. | H117: =H110+H115 -> 11000
C119: Total Land Value | H119: =Input!C63 -> 10000
C121: Total Capital Investment | H121: =H117+H119 -> 21000
B124: B. Fixed Costs
C125: 3. Depreciation | G125: Original Cost - Salvage Value
G126: Useful Life
D128: 3.01 Buildings
G129: =Input!C54 -> 5500 | H129: original cost
F130: - | G130: =(Input!E54)*Input!C54 -> 550 | H130: salvage value
F131: ÷ | G131: =Input!F54 -> 20 | H131: years useful life
F132: = | G132: =((G129-G130)/G131) -> 247.5
D134: 3.02 Machinery & Equipment
G135: =Input!C59 -> 5500 | H135: original cost
F136: - | G136: =(Input!E59)*Input!C59 -> 550 | H136: salvage value
F137: ÷ | G137: =Input!F59 -> 10 | H137: years useful life
F138: = | G138: =((G135-G136)/G137) -> 495
C140: 4. Investment | G140: Original Cost + Salvage Value x Investment Rate
H141: 2
D142: 4.01 Buildings
G143: =G129 -> 5500 | H143: original cost
F144: + | G144: =G130 -> 550 | H144: salvage value
F145: ÷ | G145: 2 | H145: average
F146: x | G146: =Input!D47 -> 2.5 | H146: % investment rate
F147: = | G147: =(((G143+G144)/G145)*(G146/100)) -> 75.625
D149: 4.02 Machinery & Equipment
G150: =G135 -> 5500 | H150: original cost
F151: + | G151: =G136 -> 550 | H151: salvage value
F152: ÷ | G152: 2 | H152: average
F153: x | G153: =Input!D47 -> 2.5 | H153: % investment rate
F154: = | G154: =(((G150+G151)/G152)*(G153/100)) -> 75.625
D156: 4.03 Land
G157: =Input!C63 -> 10000 | H157: land
F158: x | G158: =Input!D47 -> 2.5 | H158: % investment rate
F159: = | G159: =SUM(G157*(G158/100)) -> 250
B161: C. Labour
D162: Used vegetable oil
F163: x | G163: =G32 -> 7 | H163: Total number of loads
F164: x | G164: =SUM(G33/90)+2 -> 4.222222222 | H164: Hours per load
F165: x | G165: =Input!D36 -> 20 | H165: Labour Rate per hour
E166: Total | F166: = | G166: =SUM(G163*G164*G165) -> 591.1111111 | H166: Used Vegetable Oil Labour Cost
G167: =SUM(G163*G164)/(40*48) -> 0.01539351852 | H167: Full time job positions
D168: Biodiesel
G169: =Input!D17 -> 0.25 | H169: Employees per shift
F170: x | G170: =Input!D15 -> 65 | H170: Days per year
F171: x | G171: =Input!D16 -> 8 | H171: Hours operation per day
F172: x | G172: =Input!D18 -> 20 | H172: Labour Rate per hour
E173: Total | F173: = | G173: =SUM(G169*G170*G171*G172) -> 2600 | H173: Biodiesel Labour Cost
G174: =SUM((Input!D15*Input!D16)*Input!D17)/(40*48) -> 0.06770833333 | H174: Full time job positions
D176: Total | F176: = | G176: =G173+G166 -> 3191.111111 | H176: Labour
D177: Total | F177: = | G177: =SUM(G174+G167) -> 0.08310185185 | H177: Full time job positions
C179: 5. Value
D180: 5.01 Estimated On-Farm Biodiesel value
G181: =Input!D27 -> 1.2 | H181: Diesel (coloured) farm fuel - #1 ULSD
F182: x | G182: =SUM(1000*Input!D14) -> 15000 | H182: Biodiesel Plant Capacity - litres
E183: Total | F183: = | G183: =G182*G181 -> 18000 | H183: Biodiesel value
D185: 5.02 Estimated Increased Fuel Efficiency value
G186: =SUM(1*(1-(Input!D29/100)))*(1*(1-(Input!D28/100))) -> 0 | H186: ="Diesel fuel used - portion of B"&Input!D28&" blend" -> Diesel fuel used - portion of B100 blend
F187: x | G187: =Input!D27 -> 1.2 | H187: Diesel (coloured) farm fuel - #1 ULSD
F188: = | G188: =SUM(G186*G187) -> 0 | H188: ="Diesel fuel value - portion of B"&Input!D28&" blend" -> Diesel fuel value - portion of B100 blend
G190: =Input!D27 -> 1.2 | H190: Diesel (coloured) farm fuel - #1 ULSD
F191: - | G191: =G188 -> 0 | H191: =H188 -> Diesel fuel value - portion of B100 blend
F192: = | G192: =SUM(G190-G191) -> 1.2 | H192: ="Biodiesel fuel value - portion of B"&Input!D28&" blend" -> Biodiesel fuel value - portion of B100 blend
F193: ÷ | G193: =SUM(1*(1-(Input!D29/100)))*(1*((Input!D28/100))) -> 0.985 | H193: ="Biodiesel fuel used - portion of B"&Input!D28&" blend" -> Biodiesel fuel used - portion of B100 blend
G194: =SUM(G192/G193) -> 1.218274112 | H194: Total Relative biodiesel value
F195: - | G195: =Input!D27 -> 1.2 | H195: Diesel (coloured) farm fuel - #1 ULSD
F196: = | G196: =SUM(G194-G195) -> 0.01827411168 | H196: Balance - Relative biodiesel value
F197: x | G197: =SUM(1000*Input!D14) -> 15000 | H197: Biodiesel Plant Capacity - litres
E198: Total | F198: = | G198: =G197*G196 -> 274.1116751 | H198: Increased Fuel Efficiency value
D200: 5.03 Glycerol Sales
G201: =SUM((Input!D14*1000)*0.0935884)/1000 -> 1.403826 | H201: Tonnes glycerol produced
F202: x | G202: =Input!D26 -> 180 | H202: glycerol per tonne
E203: Total | F203: = | G203: =G202*G201 -> 252.68868 | H203: Glycerol
B205: For further information contact:
B208: Prepared by: | H208: Adapted for Ontario by:
B210: Roy Arnott, P.Ag. | H210: Kevin McKague, P.Eng.
B211: Farm Management Specialist | H211: Ontario Ministry of Agriculture, Food and Rural Affairs
B212: Manitoba Agriculture, Food and Rural Initiatives | H212: Woodstock, ON 519-835-6078
B213: Killarney GO Centre 204-523-6424 | H213: email: kevin.mckague@ontario.ca
B216: end of worksheet
